[Event "Titled Tuesday Blitz July 4 Late 2023"]
[White "Talibov, Shiroghlan"]
[Black "Bortnyk, Olexandr"]
[WhiteFideId "13429078"]
[BlackFideId "14120828"]
[WhiteElo "2816"]
[BlackElo "3034"]
[Result "0-1"]
[Round "7"]
[TimeControl "180+2"]
[Date "2023.07.04"]
[WhiteClock "0:00:00"]
[BlackClock "0:01:31"]
[Board "5"]

1. e4 {[%clk 0:03:00]}  Nf6 {[%clk 0:02:59]} 2. e5 {[%clk 0:02:57]}  Nd5 {[%clk 0:03:00]} 3. c4 {[%clk 0:02:52]}  Nb6 {[%clk 0:03:00]} 4. d4 {[%clk 0:02:52]}  d6 {[%clk 0:03:00]} 5. f4 {[%clk 0:02:53]}  dxe5 {[%clk 0:03:01]} 6. fxe5 {[%clk 0:02:54]}  Bf5 {[%clk 0:03:01]} 7. Be3 {[%clk 0:02:53]}  e6 {[%clk 0:03:02]} 8. Nc3 {[%clk 0:02:53]}  Bb4 {[%clk 0:03:02]} 9. Nf3 {[%clk 0:02:52]}  c5 {[%clk 0:03:02]} 10. a3 {[%clk 0:02:48]}  Bxc3+ {[%clk 0:03:00]} 11. bxc3 {[%clk 0:02:48]}  O-O {[%clk 0:02:58]} 12. Be2 {[%clk 0:02:41]}  Nc6 {[%clk 0:02:57]} 13. O-O {[%clk 0:02:41]}  Bg6 {[%clk 0:02:58]} 14. a4 {[%clk 0:02:37]}  Na5 {[%clk 0:02:56]} 15. Nd2 {[%clk 0:02:36]}  Rc8 {[%clk 0:02:54]} 16. dxc5 {[%clk 0:02:20]}  Nd7 {[%clk 0:02:53]} 17. Nb3 {[%clk 0:02:20]}  Nxb3 {[%clk 0:02:34]} 18. Qxb3 {[%clk 0:02:21]}  Qc7 {[%clk 0:02:34]} 19. Bd4 {[%clk 0:01:47]}  Nxc5 {[%clk 0:02:32]} 20. Qa3 {[%clk 0:01:36]}  Rfd8 {[%clk 0:02:25]} 21. a5 {[%clk 0:01:34]}  h6 {[%clk 0:02:00]} 22. Kh1 {[%clk 0:01:31]}  Rd7 {[%clk 0:01:59]} 23. Rfd1 {[%clk 0:01:20]}  b6 {[%clk 0:01:54]} 24. axb6 {[%clk 0:01:12]}  axb6 {[%clk 0:01:55]} 25. Bf3 {[%clk 0:01:12]}  Nd3 {[%clk 0:01:53]} 26. Qb3 {[%clk 0:00:32]}  Nxe5 {[%clk 0:01:51]} 27. Bxe5 {[%clk 0:00:31]}  Rxd1+ {[%clk 0:01:51]} 28. Rxd1 {[%clk 0:00:32]}  Qxe5 {[%clk 0:01:52]} 29. Qxb6 {[%clk 0:00:31]}  Rxc4 {[%clk 0:01:45]} 30. Qd8+ {[%clk 0:00:20]}  Kh7 {[%clk 0:01:45]} 31. Qf8 {[%clk 0:00:16]}  Rxc3 {[%clk 0:01:43]} 32. h3 {[%clk 0:00:17]}  Qg3 {[%clk 0:01:32]} 33. Rd8 {[%clk 0:00:10]}  Rc1+ {[%clk 0:01:31]} 34. Bd1 {[%clk 0:00:10]}  Rxd1+ {[%clk 0:01:30]} 35. Rxd1 {[%clk 0:00:00]}  Be4 {[%clk 0:01:31]} 0-1


[Site "https://www.chess.com"]

[Event "Titled Tuesday Blitz July 4 Late 2023"]
[White "Hamidi, Amir Mohammad"]
[Black "Korobov, Anton"]
[WhiteFideId "12563285"]
[BlackFideId "14105730"]
[WhiteElo "2812"]
[BlackElo "3020"]
[Result "1-0"]
[Round "7"]
[TimeControl "180+2"]
[Date "2023.07.04"]
[WhiteClock "0:00:17"]
[BlackClock "0:00:06"]
[Board "6"]

1. d4 {[%clk 0:03:00]}  Nf6 {[%clk 0:02:52]} 2. c4 {[%clk 0:03:00]}  e6 {[%clk 0:02:52]} 3. Nc3 {[%clk 0:03:00]}  d5 {[%clk 0:02:52]} 4. Bg5 {[%clk 0:02:59]}  c6 {[%clk 0:02:37]} 5. e3 {[%clk 0:02:59]}  Qa5 {[%clk 0:02:37]} 6. Bxf6 {[%clk 0:02:55]}  gxf6 {[%clk 0:02:38]} 7. Nf3 {[%clk 0:02:50]}  Nd7 {[%clk 0:02:28]} 8. a3 {[%clk 0:02:47]}  dxc4 {[%clk 0:02:16]} 9. Bxc4 {[%clk 0:02:46]}  b5 {[%clk 0:02:11]} 10. Be2 {[%clk 0:02:45]}  Qb6 {[%clk 0:02:11]} 11. O-O {[%clk 0:02:39]}  Bb7 {[%clk 0:02:11]} 12. b4 {[%clk 0:02:39]}  a5 {[%clk 0:02:11]} 13. Qb3 {[%clk 0:02:37]}  f5 {[%clk 0:02:07]} 14. Rfd1 {[%clk 0:02:32]}  Be7 {[%clk 0:01:58]} 15. Bf1 {[%clk 0:02:31]}  O-O {[%clk 0:01:54]} 16. g3 {[%clk 0:02:28]}  Ra7 {[%clk 0:01:48]} 17. Bg2 {[%clk 0:02:18]}  Rfa8 {[%clk 0:01:47]} 18. Rab1 {[%clk 0:02:19]}  axb4 {[%clk 0:01:45]} 19. axb4 {[%clk 0:02:20]}  Ra3 {[%clk 0:01:45]} 20. Qc2 {[%clk 0:02:16]}  Qd8 {[%clk 0:01:34]} 21. Ne1 {[%clk 0:02:12]}  Nb6 {[%clk 0:01:13]} 22. Nd3 {[%clk 0:02:11]}  Nc4 {[%clk 0:01:10]} 23. Nxb5 {[%clk 0:02:04]}  cxb5 {[%clk 0:01:10]} 24. Bxb7 {[%clk 0:02:04]}  Ra2 {[%clk 0:01:09]} 25. Qc3 {[%clk 0:01:58]}  R8a7 {[%clk 0:00:59]} 26. Bg2 {[%clk 0:01:51]}  Bg5 {[%clk 0:00:54]} 27. Ne5 {[%clk 0:01:38]}  Nxe5 {[%clk 0:00:29]} 28. dxe5 {[%clk 0:01:38]}  Qc7 {[%clk 0:00:29]} 29. Qd3 {[%clk 0:01:29]}  R7a3 {[%clk 0:00:25]} 30. Qxb5 {[%clk 0:01:24]}  Qc2 {[%clk 0:00:23]} 31. Qf1 {[%clk 0:01:13]}  Bxe3 {[%clk 0:00:21]} 32. fxe3 {[%clk 0:00:50]}  Rxe3 {[%clk 0:00:22]} 33. Re1 {[%clk 0:00:48]}  Rd3 {[%clk 0:00:18]} 34. Rbd1 {[%clk 0:00:47]}  Rb3 {[%clk 0:00:17]} 35. Rc1 {[%clk 0:00:42]}  Qd2 {[%clk 0:00:15]} 36. Rcd1 {[%clk 0:00:27]}  Qc2 {[%clk 0:00:15]} 37. Rb1 {[%clk 0:00:26]}  Rd3 {[%clk 0:00:13]} 38. Rec1 {[%clk 0:00:26]}  Qd2 {[%clk 0:00:13]} 39. Ra1 {[%clk 0:00:21]}  Rb2 {[%clk 0:00:13]} 40. Rcb1 {[%clk 0:00:20]}  Rc2 {[%clk 0:00:13]} 41. Rd1 {[%clk 0:00:19]}  Qe3+ {[%clk 0:00:13]} 42. Kh1 {[%clk 0:00:20]}  Rb3 {[%clk 0:00:13]} 43. Re1 {[%clk 0:00:20]}  Qd2 {[%clk 0:00:11]} 44. Rab1 {[%clk 0:00:20]}  Ra3 {[%clk 0:00:10]} 45. Red1 {[%clk 0:00:17]}  Qe3 {[%clk 0:00:10]} 46. Qf4 {[%clk 0:00:15]}  Qxf4 {[%clk 0:00:09]} 47. gxf4 {[%clk 0:00:16]}  Raa2 {[%clk 0:00:09]} 48. Rg1 {[%clk 0:00:16]}  Kf8 {[%clk 0:00:06]} 49. b5 {[%clk 0:00:17]} 1-0


[Site "https://www.chess.com"]

[Event "Titled Tuesday Blitz July 4 Late 2023"]
[White "Ashraf, Artin"]
[Black "Keymer, Vincent"]
[WhiteFideId "22514805"]
[BlackFideId "12940690"]
[WhiteElo "2736"]
[BlackElo "2949"]
[Result "1-0"]
[Round "7"]
[TimeControl "180+2"]
[Date "2023.07.04"]
[WhiteClock "0:00:05"]
[BlackClock "0:00:04"]
[Board "10"]

1. c4 {[%clk 0:02:55]}  c6 {[%clk 0:03:00]} 2. Nf3 {[%clk 0:02:52]}  d5 {[%clk 0:03:00]} 3. d4 {[%clk 0:02:52]}  Nf6 {[%clk 0:03:00]} 4. e3 {[%clk 0:02:53]}  Bf5 {[%clk 0:02:59]} 5. Nc3 {[%clk 0:02:52]}  e6 {[%clk 0:02:59]} 6. Nh4 {[%clk 0:02:52]}  Be4 {[%clk 0:03:00]} 7. f3 {[%clk 0:02:52]}  Bg6 {[%clk 0:03:00]} 8. Nxg6 {[%clk 0:02:52]}  hxg6 {[%clk 0:03:01]} 9. Bd2 {[%clk 0:02:50]}  Be7 {[%clk 0:02:50]} 10. Qb3 {[%clk 0:02:48]}  Qc7 {[%clk 0:02:47]} 11. O-O-O {[%clk 0:02:44]}  dxc4 {[%clk 0:02:46]} 12. Bxc4 {[%clk 0:02:40]}  a5 {[%clk 0:02:37]} 13. f4 {[%clk 0:02:26]}  a4 {[%clk 0:02:33]} 14. Qc2 {[%clk 0:02:26]}  a3 {[%clk 0:02:22]} 15. b3 {[%clk 0:02:22]}  O-O {[%clk 0:02:12]} 16. h4 {[%clk 0:02:06]}  b5 {[%clk 0:01:50]} 17. Bd3 {[%clk 0:01:59]}  Na6 {[%clk 0:01:50]} 18. Ne4 {[%clk 0:01:52]}  Rfc8 {[%clk 0:01:19]} 19. h5 {[%clk 0:01:32]}  gxh5 {[%clk 0:01:00]} 20. Nxf6+ {[%clk 0:01:27]}  Bxf6 {[%clk 0:01:01]} 21. Rxh5 {[%clk 0:01:23]}  g6 {[%clk 0:00:53]} 22. Rh6 {[%clk 0:00:52]}  Bg7 {[%clk 0:00:48]} 23. Rh3 {[%clk 0:00:44]}  c5 {[%clk 0:00:48]} 24. Bxb5 {[%clk 0:00:28]}  cxd4 {[%clk 0:00:48]} 25. Bc4 {[%clk 0:00:29]}  dxe3 {[%clk 0:00:43]} 26. Bxe3 {[%clk 0:00:25]}  Nb4 {[%clk 0:00:42]} 27. Qe2 {[%clk 0:00:21]}  Rab8 {[%clk 0:00:30]} 28. Kb1 {[%clk 0:00:13]}  Nd5 {[%clk 0:00:29]} 29. Bxd5 {[%clk 0:00:04]}  exd5 {[%clk 0:00:29]} 30. Qd3 {[%clk 0:00:02]}  Rb4 {[%clk 0:00:19]} 31. Bc1 {[%clk 0:00:02]}  Qe7 {[%clk 0:00:13]} 32. Re3 {[%clk 0:00:01]}  Qf6 {[%clk 0:00:13]} 33. Re5 {[%clk 0:00:01]}  Rxf4 {[%clk 0:00:04]} 34. Bxf4 {[%clk 0:00:02]}  Qxf4 {[%clk 0:00:04]} 35. Rxd5 {[%clk 0:00:03]}  Qf2 {[%clk 0:00:04]} 36. Rd8+ {[%clk 0:00:03]}  Rxd8 {[%clk 0:00:03]} 37. Qxd8+ {[%clk 0:00:03]}  Bf8 {[%clk 0:00:04]} 38. Qd4 {[%clk 0:00:03]}  Qf5+ {[%clk 0:00:03]} 39. Qd3 {[%clk 0:00:03]}  Qf6 {[%clk 0:00:04]} 40. Qc2 {[%clk 0:00:04]}  Bg7 {[%clk 0:00:03]} 41. Kc1 {[%clk 0:00:04]}  Qa1+ {[%clk 0:00:02]} 42. Kd2 {[%clk 0:00:04]}  Qd4+ {[%clk 0:00:02]} 43. Kc1 {[%clk 0:00:04]}  Bh6+ {[%clk 0:00:02]} 44. Kb1 {[%clk 0:00:05]}  Qe5 {[%clk 0:00:03]} 45. Qc8+ {[%clk 0:00:04]}  Bf8 {[%clk 0:00:03]} 46. Qc2 {[%clk 0:00:04]}  Bg7 {[%clk 0:00:03]} 47. Kc1 {[%clk 0:00:04]}  Bf6 {[%clk 0:00:02]} 48. Rd3 {[%clk 0:00:03]}  Kg7 {[%clk 0:00:02]} 49. Kd1 {[%clk 0:00:03]}  Bg5 {[%clk 0:00:01]} 50. Rf3 {[%clk 0:00:03]}  Bf6 {[%clk 0:00:01]} 51. Rd3 {[%clk 0:00:02]}  Qg5 {[%clk 0:00:01]} 52. Rf3 {[%clk 0:00:02]}  Qg4 {[%clk 0:00:01]} 53. Qd2 {[%clk 0:00:03]}  Qe4 {[%clk 0:00:01]} 54. Qd3 {[%clk 0:00:01]}  Qe5 {[%clk 0:00:01]} 55. Qc2 {[%clk 0:00:02]}  Qa1+ {[%clk 0:00:02]} 56. Ke2 {[%clk 0:00:03]}  Qd4 {[%clk 0:00:03]} 57. Kf1 {[%clk 0:00:03]}  Qb2 {[%clk 0:00:03]} 58. Qe2 {[%clk 0:00:03]}  Qa1+ {[%clk 0:00:03]} 59. Kf2 {[%clk 0:00:03]}  Qb2 {[%clk 0:00:04]} 60. Rd3 {[%clk 0:00:02]}  Bd4+ {[%clk 0:00:05]} 61. Kf3 {[%clk 0:00:03]}  Bf6 {[%clk 0:00:05]} 62. Qxb2 {[%clk 0:00:03]}  axb2 {[%clk 0:00:05]} 63. Rd1 {[%clk 0:00:04]}  Bg5 {[%clk 0:00:05]} 64. Rb1 {[%clk 0:00:03]}  Bc1 {[%clk 0:00:06]} 65. a4 {[%clk 0:00:04]}  f5 {[%clk 0:00:03]} 66. a5 {[%clk 0:00:04]}  g5 {[%clk 0:00:04]} 67. a6 {[%clk 0:00:04]}  g4+ {[%clk 0:00:05]} 68. Ke2 {[%clk 0:00:05]}  f4 {[%clk 0:00:04]} 69. a7 {[%clk 0:00:05]} 1-0


[Site "https://www.chess.com"]

[Event "Titled Tuesday Blitz July 4 Late 2023"]
[White "Pulvett Marin, Daniel Eduardo"]
[Black "Zhigalko, Sergei"]
[WhiteFideId "3900410"]
[BlackFideId "13502956"]
[WhiteElo "2721"]
[BlackElo "2893"]
[Result "0-1"]
[Round "7"]
[TimeControl "180+2"]
[Date "2023.07.04"]
[WhiteClock "0:00:00"]
[BlackClock "0:00:03"]
[Board "11"]

1. d4 {[%clk 0:03:00]}  Nf6 {[%clk 0:02:59]} 2. Nc3 {[%clk 0:03:00]}  d5 {[%clk 0:02:59]} 3. Bf4 {[%clk 0:03:01]}  a6 {[%clk 0:02:59]} 4. e3 {[%clk 0:03:01]}  b5 {[%clk 0:02:55]} 5. a3 {[%clk 0:02:59]}  Bb7 {[%clk 0:02:49]} 6. b4 {[%clk 0:02:58]}  Nbd7 {[%clk 0:02:48]} 7. Bd3 {[%clk 0:02:58]}  e6 {[%clk 0:02:44]} 8. h3 {[%clk 0:02:57]}  Bd6 {[%clk 0:02:44]} 9. Nge2 {[%clk 0:02:55]}  e5 {[%clk 0:02:42]} 10. dxe5 {[%clk 0:02:50]}  Nxe5 {[%clk 0:02:41]} 11. Nd4 {[%clk 0:02:50]}  O-O {[%clk 0:02:36]} 12. O-O {[%clk 0:02:47]}  g6 {[%clk 0:02:01]} 13. Nce2 {[%clk 0:02:32]}  Re8 {[%clk 0:01:59]} 14. Nb3 {[%clk 0:02:28]}  Nh5 {[%clk 0:01:26]} 15. Bh2 {[%clk 0:02:26]}  Qe7 {[%clk 0:01:17]} 16. Ned4 {[%clk 0:02:22]}  Rad8 {[%clk 0:01:13]} 17. Nf5 {[%clk 0:02:16]}  Qf6 {[%clk 0:00:59]} 18. Nxd6 {[%clk 0:02:15]}  Rxd6 {[%clk 0:01:00]} 19. Nd4 {[%clk 0:02:08]}  Bc8 {[%clk 0:00:57]} 20. a4 {[%clk 0:01:50]}  c6 {[%clk 0:00:45]} 21. axb5 {[%clk 0:01:48]}  cxb5 {[%clk 0:00:43]} 22. Kh1 {[%clk 0:01:42]}  Rb6 {[%clk 0:00:38]} 23. Qe2 {[%clk 0:01:31]}  Ng7 {[%clk 0:00:32]} 24. Rad1 {[%clk 0:01:23]}  h5 {[%clk 0:00:32]} 25. Rfe1 {[%clk 0:01:09]}  Rb7 {[%clk 0:00:19]} 26. Qd2 {[%clk 0:00:51]}  Nc4 {[%clk 0:00:18]} 27. Bxc4 {[%clk 0:00:40]}  dxc4 {[%clk 0:00:16]} 28. e4 {[%clk 0:00:40]}  Rd7 {[%clk 0:00:14]} 29. c3 {[%clk 0:00:38]}  Ne6 {[%clk 0:00:10]} 30. Qe3 {[%clk 0:00:36]}  Red8 {[%clk 0:00:10]} 31. Rd2 {[%clk 0:00:31]}  Nxd4 {[%clk 0:00:10]} 32. cxd4 {[%clk 0:00:32]}  Rxd4 {[%clk 0:00:07]} 33. e5 {[%clk 0:00:32]}  Qb6 {[%clk 0:00:07]} 34. Bf4 {[%clk 0:00:25]}  Be6 {[%clk 0:00:04]} 35. Bg5 {[%clk 0:00:24]}  R8d5 {[%clk 0:00:03]} 36. Bf6 {[%clk 0:00:22]}  Kh7 {[%clk 0:00:04]} 37. Red1 {[%clk 0:00:18]}  c3 {[%clk 0:00:03]} 38. Rxd4 {[%clk 0:00:16]}  c2 {[%clk 0:00:03]} 39. Rxd5 {[%clk 0:00:14]}  Bxd5 {[%clk 0:00:04]} 40. Rc1 {[%clk 0:00:12]}  Qc6 {[%clk 0:00:04]} 41. f3 {[%clk 0:00:09]}  Be6 {[%clk 0:00:03]} 42. Qd2 {[%clk 0:00:09]}  Bf5 {[%clk 0:00:04]} 43. Qd6 {[%clk 0:00:09]}  Qe8 {[%clk 0:00:01]} 44. Qd8 {[%clk 0:00:08]}  Qxd8 {[%clk 0:00:01]} 45. Bxd8 {[%clk 0:00:06]}  Kg8 {[%clk 0:00:02]} 46. Bf6 {[%clk 0:00:06]}  Kf8 {[%clk 0:00:03]} 47. Kh2 {[%clk 0:00:04]}  Ke8 {[%clk 0:00:03]} 48. Kg1 {[%clk 0:00:05]}  a5 {[%clk 0:00:03]} 49. Kf2 {[%clk 0:00:06]}  axb4 {[%clk 0:00:03]} 50. Ke3 {[%clk 0:00:07]}  b3 {[%clk 0:00:04]} 51. Kd2 {[%clk 0:00:07]}  b2 {[%clk 0:00:04]} 52. Rxc2 {[%clk 0:00:08]}  b1=Q {[%clk 0:00:03]} 53. Rc3 {[%clk 0:00:05]}  Qb2+ {[%clk 0:00:03]} 54. Kd1 {[%clk 0:00:00]}  Qxc3 {[%clk 0:00:03]} 0-1


[Site "https://www.chess.com"]

[Event "Titled Tuesday Blitz July 4 Late 2023"]
[White "musclemonster12"]
[Black "Henriquez Villagra, Cristobal"]
[BlackFideId "3409350"]
[WhiteElo "2550"]
[BlackElo "2858"]
[Result "0-1"]
[Round "7"]
[TimeControl "180+2"]
[Date "2023.07.04"]
[WhiteClock "0:00:00"]
[BlackClock "0:00:10"]
[Board "12"]

1. Nf3 {[%clk 0:03:00]}  d6 {[%clk 0:03:00]} 2. d4 {[%clk 0:02:59]}  g6 {[%clk 0:03:00]} 3. c4 {[%clk 0:02:57]}  Bg7 {[%clk 0:02:59]} 4. Nc3 {[%clk 0:02:57]}  c5 {[%clk 0:02:59]} 5. dxc5 {[%clk 0:02:53]}  Bxc3+ {[%clk 0:02:58]} 6. bxc3 {[%clk 0:02:53]}  dxc5 {[%clk 0:02:59]} 7. Qc2 {[%clk 0:02:51]}  Nc6 {[%clk 0:02:54]} 8. h3 {[%clk 0:02:41]}  e5 {[%clk 0:02:07]} 9. g3 {[%clk 0:02:02]}  Nf6 {[%clk 0:01:58]} 10. e4 {[%clk 0:01:52]}  Be6 {[%clk 0:01:35]} 11. Ng5 {[%clk 0:01:22]}  Bd7 {[%clk 0:01:28]} 12. Bg2 {[%clk 0:01:19]}  Qe7 {[%clk 0:01:28]} 13. O-O {[%clk 0:01:18]}  O-O-O {[%clk 0:01:25]} 14. Rd1 {[%clk 0:00:51]}  h6 {[%clk 0:01:23]} 15. Nf3 {[%clk 0:00:51]}  g5 {[%clk 0:01:23]} 16. Nd2 {[%clk 0:00:51]}  Be6 {[%clk 0:01:22]} 17. Rb1 {[%clk 0:00:50]}  b6 {[%clk 0:01:19]} 18. Nf1 {[%clk 0:00:38]}  Rxd1 {[%clk 0:01:06]} 19. Qxd1 {[%clk 0:00:38]}  Na5 {[%clk 0:01:04]} 20. Ne3 {[%clk 0:00:37]}  Qd7 {[%clk 0:01:03]} 21. Qxd7+ {[%clk 0:00:14]}  Kxd7 {[%clk 0:01:02]} 22. Nd5 {[%clk 0:00:13]}  Ne8 {[%clk 0:00:52]} 23. Bf1 {[%clk 0:00:12]}  Nd6 {[%clk 0:00:52]} 24. f4 {[%clk 0:00:11]}  gxf4 {[%clk 0:00:52]} 25. gxf4 {[%clk 0:00:12]}  Naxc4 {[%clk 0:00:45]} 26. fxe5 {[%clk 0:00:11]}  Nxe5 {[%clk 0:00:43]} 27. Bf4 {[%clk 0:00:11]}  Bxd5 {[%clk 0:00:41]} 28. Bxe5 {[%clk 0:00:11]}  Rg8+ {[%clk 0:00:39]} 29. Kf2 {[%clk 0:00:11]}  Nxe4+ {[%clk 0:00:39]} 30. Ke3 {[%clk 0:00:10]}  Ke6 {[%clk 0:00:35]} 31. Bf4 {[%clk 0:00:10]}  Nd6 {[%clk 0:00:35]} 32. Rd1 {[%clk 0:00:08]}  Nf5+ {[%clk 0:00:35]} 33. Kf2 {[%clk 0:00:08]}  f6 {[%clk 0:00:23]} 34. Bb5 {[%clk 0:00:07]}  Ne7 {[%clk 0:00:18]} 35. c4 {[%clk 0:00:05]}  Be4 {[%clk 0:00:17]} 36. Bd7+ {[%clk 0:00:01]}  Kf7 {[%clk 0:00:17]} 37. Bg4 {[%clk 0:00:01]}  Bf5 {[%clk 0:00:16]} 38. Bh5+ {[%clk 0:00:02]}  Bg6 {[%clk 0:00:14]} 39. Bf3 {[%clk 0:00:03]}  Bf5 {[%clk 0:00:13]} 40. Re1 {[%clk 0:00:03]}  Rd8 {[%clk 0:00:10]} 41. Bh5+ {[%clk 0:00:02]}  Ng6 {[%clk 0:00:10]} 42. Bf3 {[%clk 0:00:00]}  Nxf4 {[%clk 0:00:10]} 0-1


[Site "https://www.chess.com"]

[Event "Titled Tuesday Blitz July 4 Late 2023"]
[White "Nihal Sarin"]
[Black "Grigoriants, Sergey"]
[WhiteFideId "25092340"]
[BlackFideId "4130804"]
[WhiteElo "3117"]
[BlackElo "2859"]
[Result "1-0"]
[Round "7"]
[TimeControl "180+2"]
[Date "2023.07.04"]
[WhiteClock "0:01:40"]
[BlackClock "0:00:21"]
[Board "15"]

1. b3 {[%clk 0:03:00]}  d5 {[%clk 0:02:55]} 2. Bb2 {[%clk 0:03:00]}  c5 {[%clk 0:02:55]} 3. e3 {[%clk 0:03:00]}  Nf6 {[%clk 0:02:53]} 4. Nf3 {[%clk 0:03:01]}  Nc6 {[%clk 0:02:35]} 5. Bb5 {[%clk 0:03:01]}  Bd7 {[%clk 0:02:34]} 6. O-O {[%clk 0:03:01]}  e6 {[%clk 0:02:23]} 7. d3 {[%clk 0:03:01]}  Be7 {[%clk 0:02:17]} 8. Nbd2 {[%clk 0:03:01]}  O-O {[%clk 0:02:16]} 9. Bxc6 {[%clk 0:03:02]}  Bxc6 {[%clk 0:02:16]} 10. Ne5 {[%clk 0:03:03]}  Rc8 {[%clk 0:02:15]} 11. f4 {[%clk 0:03:03]}  b5 {[%clk 0:02:11]} 12. Rf3 {[%clk 0:03:03]}  d4 {[%clk 0:02:08]} 13. e4 {[%clk 0:03:02]}  Bb7 {[%clk 0:02:05]} 14. Rh3 {[%clk 0:03:02]}  g6 {[%clk 0:01:56]} 15. a4 {[%clk 0:02:59]}  a6 {[%clk 0:01:52]} 16. Ndf3 {[%clk 0:02:59]}  Nd7 {[%clk 0:01:45]} 17. Qe1 {[%clk 0:02:48]}  Bf6 {[%clk 0:01:16]} 18. Ng4 {[%clk 0:02:33]}  Bg7 {[%clk 0:01:03]} 19. Nh6+ {[%clk 0:02:33]}  Bxh6 {[%clk 0:01:04]} 20. Rxh6 {[%clk 0:02:34]}  f6 {[%clk 0:01:04]} 21. Qh4 {[%clk 0:02:26]}  Rf7 {[%clk 0:01:04]} 22. Kh1 {[%clk 0:02:03]}  Nf8 {[%clk 0:01:04]} 23. Qf2 {[%clk 0:01:56]}  Bc6 {[%clk 0:00:59]} 24. axb5 {[%clk 0:01:52]}  axb5 {[%clk 0:00:59]} 25. b4 {[%clk 0:01:53]}  Qd6 {[%clk 0:00:37]} 26. bxc5 {[%clk 0:01:48]}  Qxf4 {[%clk 0:00:36]} 27. Rh4 {[%clk 0:01:49]}  Qe3 {[%clk 0:00:31]} 28. Qf1 {[%clk 0:01:48]}  f5 {[%clk 0:00:25]} 29. Bxd4 {[%clk 0:01:45]}  fxe4 {[%clk 0:00:25]} 30. Bxe3 {[%clk 0:01:45]}  exf3 {[%clk 0:00:21]} 31. Kg1 {[%clk 0:01:40]} 1-0


[Site "https://www.chess.com"]

[Event "Titled Tuesday Blitz July 4 Late 2023"]
[White "Rustemov, Alexander"]
[Black "Sargsyan, Shant"]
[WhiteFideId "4119002"]
[BlackFideId "13306766"]
[WhiteElo "2807"]
[BlackElo "2994"]
[Result "0-1"]
[Round "7"]
[TimeControl "180+2"]
[Date "2023.07.04"]
[WhiteClock "0:00:00"]
[BlackClock "0:01:41"]
[Board "16"]

1. d4 {[%clk 0:02:55]}  g6 {[%clk 0:02:59]} 2. c4 {[%clk 0:02:55]}  Nf6 {[%clk 0:02:58]} 3. Nf3 {[%clk 0:02:55]}  Bg7 {[%clk 0:02:57]} 4. g3 {[%clk 0:02:56]}  O-O {[%clk 0:02:57]} 5. Bg2 {[%clk 0:02:56]}  d6 {[%clk 0:02:58]} 6. Nc3 {[%clk 0:02:56]}  Nbd7 {[%clk 0:02:57]} 7. O-O {[%clk 0:02:56]}  e5 {[%clk 0:02:58]} 8. e4 {[%clk 0:02:57]}  Re8 {[%clk 0:02:56]} 9. h3 {[%clk 0:02:54]}  b6 {[%clk 0:02:56]} 10. Re1 {[%clk 0:02:46]}  exd4 {[%clk 0:02:56]} 11. Nxd4 {[%clk 0:02:46]}  Bb7 {[%clk 0:02:57]} 12. f3 {[%clk 0:02:45]}  a6 {[%clk 0:02:54]} 13. Be3 {[%clk 0:02:41]}  Ne5 {[%clk 0:02:51]} 14. b3 {[%clk 0:02:40]}  Rb8 {[%clk 0:02:34]} 15. a4 {[%clk 0:02:36]}  Nfd7 {[%clk 0:02:30]} 16. Qc2 {[%clk 0:02:28]}  Nc5 {[%clk 0:02:29]} 17. Rad1 {[%clk 0:02:28]}  h5 {[%clk 0:02:24]} 18. f4 {[%clk 0:02:22]}  Nc6 {[%clk 0:02:24]} 19. Nd5 {[%clk 0:02:16]}  Nxd4 {[%clk 0:02:21]} 20. Bxd4 {[%clk 0:02:15]}  Bxd5 {[%clk 0:02:22]} 21. cxd5 {[%clk 0:02:09]}  Bxd4+ {[%clk 0:02:22]} 22. Rxd4 {[%clk 0:02:09]}  a5 {[%clk 0:02:23]} 23. e5 {[%clk 0:01:53]}  dxe5 {[%clk 0:02:23]} 24. fxe5 {[%clk 0:01:51]}  Qg5 {[%clk 0:02:23]} 25. e6 {[%clk 0:01:46]}  Qxg3 {[%clk 0:02:21]} 26. Rdd1 {[%clk 0:00:42]}  fxe6 {[%clk 0:02:17]} 27. dxe6 {[%clk 0:00:40]}  Rxe6 {[%clk 0:02:14]} 28. Rxe6 {[%clk 0:00:36]}  Nxe6 {[%clk 0:02:15]} 29. Qc4 {[%clk 0:00:29]}  Re8 {[%clk 0:02:10]} 30. Rd7 {[%clk 0:00:25]}  Kh8 {[%clk 0:01:49]} 31. Rd3 {[%clk 0:00:03]}  Qe1+ {[%clk 0:01:48]} 32. Kh2 {[%clk 0:00:03]}  Qe5+ {[%clk 0:01:48]} 33. Kg1 {[%clk 0:00:03]}  Nf4 {[%clk 0:01:46]} 34. Rd7 {[%clk 0:00:02]}  Ne2+ {[%clk 0:01:42]} 35. Kh1 {[%clk 0:00:00]}  Qa1+ {[%clk 0:01:41]} 0-1


[Site "https://www.chess.com"]

[Event "Titled Tuesday Blitz July 4 Late 2023"]
[White "Kollars, Dmitrij"]
[Black "Morefield, Jason"]
[WhiteFideId "12909572"]
[BlackFideId "30920825"]
[WhiteElo "2967"]
[BlackElo "2766"]
[Result "1-0"]
[Round "7"]
[TimeControl "180+2"]
[Date "2023.07.04"]
[WhiteClock "0:01:08"]
[BlackClock "0:00:00"]
[Board "18"]

1. b3 {[%clk 0:03:00]}  d5 {[%clk 0:02:59]} 2. Bb2 {[%clk 0:02:59]}  Bf5 {[%clk 0:02:59]} 3. d3 {[%clk 0:02:57]}  e6 {[%clk 0:02:59]} 4. Nd2 {[%clk 0:02:57]}  Nf6 {[%clk 0:03:00]} 5. g3 {[%clk 0:02:51]}  Be7 {[%clk 0:02:54]} 6. Bg2 {[%clk 0:02:52]}  O-O {[%clk 0:02:48]} 7. e4 {[%clk 0:02:52]}  Bg6 {[%clk 0:02:48]} 8. Nh3 {[%clk 0:02:52]}  c5 {[%clk 0:02:29]} 9. Nf4 {[%clk 0:02:50]}  Nc6 {[%clk 0:02:24]} 10. h4 {[%clk 0:02:49]}  dxe4 {[%clk 0:02:13]} 11. h5 {[%clk 0:02:44]}  Bf5 {[%clk 0:02:11]} 12. dxe4 {[%clk 0:02:41]}  Bg4 {[%clk 0:02:01]} 13. f3 {[%clk 0:02:42]}  e5 {[%clk 0:02:00]} 14. fxg4 {[%clk 0:02:17]}  exf4 {[%clk 0:01:59]} 15. gxf4 {[%clk 0:02:13]}  Re8 {[%clk 0:01:12]} 16. g5 {[%clk 0:02:10]}  Nd7 {[%clk 0:01:11]} 17. Qg4 {[%clk 0:02:03]}  Nb4 {[%clk 0:01:05]} 18. O-O-O {[%clk 0:01:59]}  Qc7 {[%clk 0:00:47]} 19. Nc4 {[%clk 0:01:48]}  Nf8 {[%clk 0:00:47]} 20. g6 {[%clk 0:01:35]}  fxg6 {[%clk 0:00:19]} 21. hxg6 {[%clk 0:01:36]}  h6 {[%clk 0:00:17]} 22. e5 {[%clk 0:01:26]}  Rad8 {[%clk 0:00:16]} 23. a3 {[%clk 0:01:22]}  b5 {[%clk 0:00:12]} 24. Nd6 {[%clk 0:01:20]}  Bxd6 {[%clk 0:00:05]} 25. exd6 {[%clk 0:01:20]}  Rxd6 {[%clk 0:00:05]} 26. axb4 {[%clk 0:01:21]}  Rxg6 {[%clk 0:00:02]} 27. Bd5+ {[%clk 0:01:18]}  Kh7 {[%clk 0:00:02]} 28. Qf3 {[%clk 0:01:14]}  cxb4 {[%clk 0:00:01]} 29. Be4 {[%clk 0:01:11]}  Rc8 {[%clk 0:00:00]} 30. Rhg1 {[%clk 0:01:08]} 1-0


[Site "https://www.chess.com"]